fUST/lending_fUST_20241227
["ID","MTS","AMOUNT","RATE_DAILY","PERIOD"]
[346716900,1735235439666,-500.0,0.00016982,2]
[346716902,1735235439676,-500.0,0.00016982,2]
[346716903,1735235439686,-500.0,0.00016982,2]
[346716904,1735235439695,-500.0,0.00016982,2]
[346716905,1735235439705,-500.0,0.00016982,2]
[346716906,1735235439718,-500.0,0.00016982,2]
[346716907,1735235439728,-500.0,0.00016982,2]
[346716909,1735235439738,-500.0,0.00016982,2]
[346716911,1735235439747,-220.38,0.00016982,2]
[346716913,1735235439757,-500.0,0.00016982,2]
[346716914,1735235439766,-526.3,0.00016982,2]
[346716915,1735235439776,-500.0,0.00016982,2]
[346716916,1735235439786,-500.0,0.00016982,2]
[346716917,1735235439796,-500.0,0.00016982,2]
[346716918,1735235439806,-500.0,0.00016982,2]
[346716919,1735235439815,-500.0,0.00016982,2]
[346716920,1735235439825,-2318.27563086,0.00016982,2]
[346716922,1735235439837,-404.75567804,0.00016982,2]
[346716928,1735235440110,-1171.5486911,0.00016982,2]
[346716929,1735235440120,-3894.58,0.00016982,2]
[346716930,1735235440130,-758.06,0.00016982,2]
[346716931,1735235440140,-856.53,0.00016982,2]
[346716932,1735235440150,-500.0,0.00016982,2]
[346716936,1735235440290,-500.0,0.00016982,2]
[346716937,1735235440301,-500.0,0.00016982,2]
[346716938,1735235440311,-500.0,0.00016982,2]
[346716939,1735235440321,-500.0,0.00016982,2]
[346716940,1735235440330,-1053.83,0.00016982,2]
[346716941,1735235440339,-500.0,0.00016982,2]
[346716942,1735235440349,-500.0,0.00016982,2]
[346716943,1735235440359,-500.0,0.00016982,2]
[346716944,1735235440370,-532.6,0.00016982,2]
[346716945,1735235440381,-500.0,0.00016982,2]
[346716946,1735235440390,-500.0,0.00016982,2]
[346716947,1735235440399,-500.0,0.00016982,2]
[346716948,1735235440409,-500.0,0.00016982,2]
[346716949,1735235440420,-500.0,0.00016982,2]
[346716950,1735235440429,-500.0,0.00016982,2]
[346716951,1735235440439,-500.0,0.00016982,2]
[346716952,1735235440449,-580.79,0.00016982,2]
[346716953,1735235440458,-500.0,0.00016982,2]
[346716954,1735235440469,-599.25,0.00016982,2]
[346716955,1735235440479,-600.47,0.00016982,2]
[346716956,1735235440488,-500.0,0.00016982,2]
[346716957,1735235440501,-500.0,0.00016982,2]
[346716958,1735235440510,-500.0,0.00016982,2]
[346716959,1735235440520,-500.0,0.00016983,2]
[346716960,1735235440529,-219.82294236,0.00016983,2]
[346716961,1735235440539,-547.49413625,0.00016983,2]
[346716962,1735235440548,-500.0,0.00016983,2]
[346716963,1735235440557,-2816.87759048,0.00016983,2]
[346716964,1735235440569,-500.0,0.00016983,2]
[346716965,1735235440583,-577.70240952,0.00016983,2]
[346716966,1735235440592,-1190.09759048,0.00016983,2]
[346716967,1735235440604,-2566.80552559,0.00016983,2]
[346716968,1735235440615,-137.67688393,0.00016983,2]
[346716969,1735235440626,-3894.58,0.00016983,2]
[346716970,1735235440635,-1945.41936907,0.00016983,2]
[346716971,1735235440646,-1609.96346841,0.00016983,2]
[346716989,1735235442994,-500.0,0.00016982,2]
[346716990,1735235443004,-610.0500002,0.00016983,2]
[346717009,1735235446071,-500.0,0.0001698,2]
[346717010,1735235446082,-9538.54350907,0.00016983,2]
[346717011,1735235446095,-1933.59365325,0.00016983,2]
[346717012,1735235446105,-500.0,0.00016983,2]
[346717013,1735235446114,-500.0,0.00016984,2]
[346717014,1735235446123,-500.0,0.00016984,2]
[346717015,1735235446133,-500.0,0.00016984,2]
[346717016,1735235446143,-500.0,0.00016984,2]
[346717017,1735235446152,-500.0,0.00016984,2]
[346717018,1735235446162,-500.0,0.00016984,2]
[346717019,1735235446171,-500.0,0.00016984,2]
[346717020,1735235446180,-500.0,0.00016984,2]
[346717021,1735235446190,-500.0,0.00016984,2]
[346717022,1735235446199,-500.0,0.00016984,2]
[346717023,1735235446208,-500.0,0.00016984,2]
[346717024,1735235446217,-500.0,0.00016984,2]
[346717025,1735235446226,-500.0,0.00016984,2]
[346717026,1735235446236,-500.0,0.00016984,2]
[346717027,1735235446246,-500.0,0.00016984,2]
[346717028,1735235446255,-500.0,0.00016984,2]
[346717029,1735235446265,-500.0,0.00016984,2]
[346717030,1735235446275,-500.0,0.00016984,2]
[346717031,1735235446285,-300.0,0.00016984,2]
[346717032,1735235446295,-507.14502812,0.00016984,2]
[346717033,1735235446304,-500.0,0.00016984,2]
[346717034,1735235446314,-500.0,0.00016984,2]
[346717035,1735235446323,-500.0,0.00016984,2]
[346717036,1735235446333,-500.0,0.00016984,2]
[346717037,1735235446342,-634.91,0.00016984,2]
[346717038,1735235446354,-500.0,0.00016984,2]
[346717039,1735235446365,-500.0,0.00016984,2]
[346717040,1735235446374,-500.0,0.00016984,2]
[346717041,1735235446386,-500.0,0.00016984,2]
[346717042,1735235446395,-500.0,0.00016984,2]
[346717043,1735235446405,-500.0,0.00016984,2]
[346717044,1735235446414,-500.0,0.00016984,2]
[346717045,1735235446424,-500.0,0.00016984,2]
[346717046,1735235446434,-500.0,0.00016984,2]
[346717047,1735235446444,-500.0,0.00016984,2]
[346717048,1735235446453,-500.0,0.00016984,2]
[346717049,1735235446462,-500.0,0.00016984,2]
[346717050,1735235446471,-500.0,0.00016984,2]
[346717051,1735235446481,-500.0,0.00016984,2]
[346717052,1735235446492,-500.0,0.00016984,2]
[346717053,1735235446502,-500.0,0.00016984,2]
[346717054,1735235446511,-500.0,0.00016984,2]
[346717055,1735235446520,-548.36,0.00016984,2]
[346717056,1735235446529,-500.0,0.00016984,2]
[346717057,1735235446539,-549.19,0.00016984,2]
[346717058,1735235446548,-500.0,0.00016984,2]
[346717059,1735235446558,-500.0,0.00016984,2]
[346717060,1735235446568,-500.0,0.00016984,2]
[346717061,1735235446577,-500.0,0.00016984,2]
[346717062,1735235446587,-500.0,0.00016984,2]
[346717063,1735235446596,-500.0,0.00016984,2]
[346717064,1735235446605,-500.0,0.00016984,2]
[346717065,1735235446614,-500.0,0.00016984,2]
[346717066,1735235446623,-500.0,0.00016984,2]
[346717067,1735235446635,-500.0,0.00016984,2]
[346717068,1735235446644,-500.0,0.00016984,2]
[346717069,1735235446653,-500.0,0.00016984,2]
[346717070,1735235446662,-500.0,0.00016984,2]
[346717071,1735235446671,-500.0,0.00016984,2]
[346717072,1735235446680,-500.0,0.00016984,2]
[346717073,1735235446689,-500.0,0.00016984,2]
[346717074,1735235446698,-500.0,0.00016984,2]
[346717075,1735235446707,-638.14822472,0.00016984,2]
[346717076,1735235446715,-500.0,0.00016984,2]
[346717077,1735235446724,-500.0,0.00016984,2]
[346717078,1735235446733,-500.0,0.00016984,2]
[346717079,1735235446743,-500.0,0.00016984,2]
[346717080,1735235446752,-500.0,0.00016984,2]
[346717081,1735235446762,-500.0,0.00016984,2]
[346717082,1735235446771,-409.85561352,0.00016984,2]
[346717083,1735235446780,-537.95,0.00016984,2]
[346717084,1735235446789,-225.85997549,0.00016984,2]
[346717085,1735235446798,-500.0,0.00016984,2]
[346717086,1735235446807,-500.0,0.00016984,2]
[346717087,1735235446816,-500.0,0.00016984,2]
[346717088,1735235446826,-506.92675691,0.00016984,2]
[346717089,1735235446835,-535.95,0.00016984,2]
[346717090,1735235446844,-500.0,0.00016984,2]
[346717091,1735235446853,-203.93964182,0.00016984,2]
[346717092,1735235446862,-500.0,0.00016984,2]
[346717093,1735235446871,-500.0,0.00016984,2]
[346717094,1735235446882,-500.0,0.00016984,2]
[346717095,1735235446891,-523.61,0.00016984,2]
[346717096,1735235446900,-500.0,0.00016984,2]
[346717097,1735235446909,-500.0,0.00016984,2]
[346717098,1735235446919,-658.12,0.00016984,2]
[346717099,1735235446928,-500.0,0.00016984,2]
[346717100,1735235446937,-500.0,0.00016984,2]
[346717101,1735235446947,-500.0,0.00016984,2]
[346717102,1735235446956,-500.0,0.00016984,2]
[346717103,1735235446965,-500.0,0.00016984,2]
[346717104,1735235446974,-500.0,0.00016984,2]
[346717105,1735235446984,-500.0,0.00016984,2]
[346717106,1735235446993,-500.0,0.00016984,2]
[346717107,1735235447002,-500.0,0.00016984,2]
[346717108,1735235447014,-500.0,0.00016984,2]
[346717109,1735235447023,-500.0,0.00016984,2]
[346717110,1735235447032,-500.0,0.00016984,2]
[346717111,1735235447041,-500.0,0.00016984,2]
[346717112,1735235447050,-500.0,0.00016984,2]
[346717113,1735235447060,-500.0,0.00016984,2]
[346717114,1735235447069,-500.0,0.00016984,2]
[346717115,1735235447078,-500.0,0.00016984,2]
[346717116,1735235447087,-500.0,0.00016984,2]
[346717117,1735235447096,-500.0,0.00016984,2]
[346717118,1735235447105,-500.0,0.00016984,2]
[346717119,1735235447114,-500.0,0.00016984,2]
[346717120,1735235447123,-500.0,0.00016984,2]
[346717121,1735235447133,-500.0,0.00016984,2]
[346717122,1735235447142,-500.0,0.00016984,2]
[346717123,1735235447150,-3894.58,0.00016984,2]
[346717124,1735235447159,-500.0,0.00016984,2]
[346717125,1735235447168,-500.0,0.00016984,2]
[346717126,1735235447178,-583.7,0.00016984,2]
[346717127,1735235447187,-500.0,0.00016984,2]
[346717128,1735235447196,-500.0,0.00016984,2]
[346717129,1735235447205,-500.0,0.00016984,2]
[346717130,1735235447214,-500.0,0.00016984,2]
[346717131,1735235447223,-500.0,0.00016984,2]
[346717132,1735235447232,-500.0,0.00016984,2]
[346717133,1735235447241,-500.0,0.00016984,2]
[346717134,1735235447250,-500.0,0.00016984,2]
[346717135,1735235447259,-500.0,0.00016984,2]
[346717136,1735235447269,-500.0,0.00016984,2]
[346717137,1735235447278,-362.44,0.00016984,2]
[346717138,1735235447287,-500.0,0.00016984,2]
[346717139,1735235447383,-500.0,0.00016984,2]
[346717140,1735235447393,-587.87,0.00016984,2]
[346717141,1735235447402,-500.0,0.00016984,2]
[346717142,1735235447411,-500.0,0.00016984,2]
[346717143,1735235447421,-860.34,0.00016984,2]
[346717144,1735235447432,-500.0,0.00016984,2]
[346717145,1735235447442,-500.0,0.00016984,2]
[346717146,1735235447451,-500.0,0.00016984,2]
[346717147,1735235447460,-500.0,0.00016984,2]
[346717148,1735235447470,-500.0,0.00016984,2]
[346717149,1735235447479,-500.0,0.00016984,2]
[346717150,1735235447488,-500.0,0.00016984,2]
[346717151,1735235447500,-500.0,0.00016984,2]
[346717152,1735235447509,-500.0,0.00016984,2]
[346717153,1735235447519,-500.0,0.00016984,2]
[346717154,1735235447532,-500.0,0.00016984,2]
[346717155,1735235447543,-500.0,0.00016984,2]
[346717156,1735235447552,-1546.16,0.00016984,2]
[346717157,1735235447561,-500.0,0.00016984,2]
[346717158,1735235447571,-500.0,0.00016984,2]
[346717159,1735235447581,-500.0,0.00016984,2]
[346717160,1735235447590,-500.0,0.00016984,2]
[346717161,1735235447599,-500.0,0.00016984,2]
[346717162,1735235447608,-501.43043041,0.00016984,2]
[346717163,1735235447618,-500.0,0.00016984,2]
[346717164,1735235447628,-624.16598017,0.00016984,2]
[346717165,1735235447639,-500.0,0.00016984,2]
[346717166,1735235447648,-500.0,0.00016984,2]
[346717167,1735235447658,-1000.0,0.00016984,2]
[346717168,1735235447668,-500.0,0.00016984,2]
[346717169,1735235447677,-500.0,0.00016984,2]
[346717170,1735235447686,-500.0,0.00016984,2]
[346717171,1735235447696,-500.0,0.00016984,2]
[346717172,1735235447705,-500.0,0.00016985,2]
[346717173,1735235447715,-754.91,0.00016985,2]
[346717174,1735235447724,-500.0,0.00016985,2]
[346717175,1735235447733,-500.0,0.00016985,2]
[346717176,1735235447743,-500.0,0.00016985,2]
[346717177,1735235447752,-500.0,0.00016985,2]
[346717178,1735235447761,-500.0,0.00016985,2]
[346717179,1735235447771,-500.0,0.00016985,2]
[346717180,1735235447780,-500.0,0.00016985,2]
[346717181,1735235447789,-521.1,0.00016985,2]
[346717182,1735235447798,-500.0,0.00016985,2]
[346717183,1735235447808,-500.0,0.00016985,2]
[346717184,1735235447818,-500.0,0.00016985,2]
[346717185,1735235447827,-3894.58,0.00016985,2]
[346717186,1735235447836,-500.0,0.00016985,2]
[346717187,1735235447846,-500.0,0.00016985,2]
[346717188,1735235447855,-500.0,0.00016985,2]
[346717189,1735235447864,-500.0,0.00016985,2]
[346717190,1735235447873,-500.0,0.00016985,2]
[346717191,1735235447884,-500.0,0.00016986,2]
[346717192,1735235447894,-500.0,0.00016986,2]
[346717193,1735235447903,-500.0,0.00016986,2]
[346717194,1735235447912,-500.0,0.00016986,2]
[346717195,1735235447922,-500.0,0.00016986,2]
[346717196,1735235447931,-500.0,0.00016986,2]
[346717197,1735235447941,-500.0,0.00016986,2]
[346717198,1735235447950,-500.0,0.00016986,2]
[346717199,1735235447960,-500.0,0.00016986,2]
[346717200,1735235447969,-482.60843141,0.00016986,2]
[346717201,1735235447978,-500.0,0.00016986,2]
[346717202,1735235447987,-500.0,0.00016986,2]
[346717203,1735235447997,-501.96815745,0.00016986,2]
[346717204,1735235448007,-500.0,0.00016986,2]
[346717205,1735235448016,-500.0,0.00016986,2]
[346717206,1735235448025,-500.0,0.00016986,2]
[346717207,1735235448035,-500.0,0.00016986,2]
[346717208,1735235448044,-500.0,0.00016986,2]
[346717209,1735235448054,-500.0,0.00016986,2]
[346717210,1735235448063,-500.0,0.00016986,2]
[346717211,1735235448073,-500.0,0.00016986,2]
[346717212,1735235448082,-500.0,0.00016986,2]
[346717213,1735235448092,-500.0,0.00016986,2]
[346717214,1735235448102,-151.0,0.00016986,2]
[346717215,1735235448111,-151.0,0.00016986,2]
[346717216,1735235448120,-1030.933018,0.00016986,2]
[346717217,1735235448130,-151.0,0.00016986,2]
[346717218,1735235448140,-1030.933018,0.00016986,2]
[346717219,1735235448151,-205.972044,0.00016986,2]
[346717220,1735235448160,-3894.58,0.00016986,2]
[346717221,1735235448170,-597.444897,0.00016986,2]
[346717222,1735235448179,-597.444897,0.00016986,2]
[346717223,1735235448188,-384.214268,0.00016986,2]
[346717224,1735235448197,-749.052098,0.00016986,2]
[346717225,1735235448207,-384.214268,0.00016986,2]
[346717226,1735235448217,-749.052098,0.00016986,2]
[346717227,1735235448226,-151.0,0.00016986,2]
[346717228,1735235448236,-413.938411,0.00016986,2]
[346717229,1735235448247,-413.938411,0.00016986,2]
[346717230,1735235448257,-500.0,0.00016986,2]
[346717231,1735235448268,-500.0,0.00016986,2]
[346717232,1735235448278,-151.0,0.00016986,2]
[346717233,1735235448287,-151.0,0.00016986,2]
[346717234,1735235448297,-151.0,0.00016986,2]
[346717235,1735235448307,-616.924182,0.00016986,2]
[346717236,1735235448316,-500.0,0.00016986,2]
[346717237,1735235448326,-616.924182,0.00016986,2]
[346717238,1735235448335,-151.0,0.00016986,2]
[346717239,1735235448345,-480.17695796,0.00016987,2]
[346717240,1735235448355,-500.0,0.00016987,2]
[346717241,1735235448365,-500.0,0.00016987,2]
[346717242,1735235448374,-500.0,0.00016987,2]
[346717243,1735235448384,-500.0,0.00016987,2]
[346717244,1735235448393,-500.0,0.00016987,2]
[346717245,1735235448403,-500.0,0.00016987,2]
[346717246,1735235448412,-186.156112,0.00016987,2]
[346717247,1735235448421,-186.156112,0.00016987,2]
[346717248,1735235448432,-151.0,0.00016987,2]
[346717249,1735235448442,-500.0,0.00016987,2]
[346717250,1735235448452,-500.0,0.00016987,2]
[346717251,1735235448461,-151.0,0.00016987,2]
[346717252,1735235448471,-151.0,0.00016987,2]
[346717253,1735235448480,-500.0,0.00016987,2]
[346717254,1735235448491,-195.761486,0.00016987,2]
[346717255,1735235448505,-195.761486,0.00016987,2]
[346717256,1735235448514,-205.624192,0.00016987,2]
[346717257,1735235448524,-205.624192,0.00016987,2]
[346717258,1735235448535,-4480.34,0.00016987,2]
[346717259,1735235448544,-1933.080211,0.00016987,2]
[346717260,1735235448554,-1933.080211,0.00016987,2]
[346717261,1735235448563,-902.327182,0.00016987,2]
[346717262,1735235448574,-902.327182,0.00016987,2]
[346717263,1735235448583,-151.0,0.00016987,2]
[346717264,1735235448593,-151.0,0.00016987,2]
[346717265,1735235448603,-327.904025,0.00016987,2]
[346717266,1735235448612,-151.0,0.00016987,2]
[346717267,1735235448622,-327.904025,0.00016987,2]
[346717268,1735235448633,-972.310938,0.00016987,2]
[346717269,1735235448642,-972.310938,0.00016987,2]
[346717270,1735235448652,-573.08,0.00016987,2]
[346717271,1735235448662,-500.0,0.00016987,2]
[346717272,1735235448671,-500.0,0.00016987,2]
[346717273,1735235448681,-2688.95,0.00016988,2]
[346717274,1735235448690,-1000.0,0.00017,17]
[346717275,1735235448699,-157.433088,0.00017068,2]
[346717276,1735235448710,-195.83183477,0.00017069,2]
[346717277,1735235448719,-225.1064348,0.00017089,2]
[346717278,1735235448728,-666.0,0.000171,2]
[346717279,1735235448737,-152.0,0.00017122,2]
[346717280,1735235448748,-120594.74350657,0.000172,2]
[346717281,1735235448757,-151.0,0.000172,2]
[346717282,1735235448766,-692.556853,0.000172,2]
[346717283,1735235448776,-692.556853,0.000172,2]
[346717284,1735235448786,-151.0,0.000172,2]
[346717285,1735235448795,-151.0,0.000172,2]
[346717286,1735235448805,-243.838255,0.000172,2]
[346717287,1735235448815,-243.838255,0.000172,2]
[346717288,1735235448824,-153.840585,0.000172,2]
[346717289,1735235448834,-151.0,0.000172,2]
[346717290,1735235448843,-180.025896,0.000172,2]
[346717291,1735235448852,-180.025896,0.000172,2]
[346717292,1735235448862,-186.156112,0.000172,2]
[346717293,1735235448871,-186.156112,0.000172,2]
[346717294,1735235448883,-151.0,0.000172,2]
[346717295,1735235448892,-1576.55464,0.000172,2]
[346717296,1735235448902,-1576.55464,0.000172,2]
[346717297,1735235448911,-151.0,0.000172,2]
[346717298,1735235448920,-151.0,0.000172,2]
[346717299,1735235448930,-151.0,0.000172,2]
[346717300,1735235448939,-151.0,0.000172,2]
[346717301,1735235448949,-1030.933018,0.000172,2]
[346717302,1735235448958,-151.0,0.000172,2]
[346717303,1735235448967,-1030.933018,0.000172,2]
[346717304,1735235448977,-195.761486,0.000172,2]
[346717305,1735235448986,-195.761486,0.000172,2]
[346717306,1735235448996,-205.624192,0.000172,2]
[346717307,1735235449006,-205.624192,0.000172,2]
[346717308,1735235449015,-1933.080211,0.000172,2]
[346717309,1735235449025,-1933.080211,0.000172,2]
[346717310,1735235449035,-902.327182,0.000172,2]
[346717311,1735235449044,-902.327182,0.000172,2]
[346717312,1735235449054,-597.444897,0.000172,2]
[346717313,1735235449064,-597.444897,0.000172,2]
[346717314,1735235449074,-151.0,0.000172,2]
[346717315,1735235449083,-151.0,0.000172,2]
[346717316,1735235449093,-327.904025,0.000172,2]
[346717317,1735235449103,-151.0,0.000172,2]
[346717318,1735235449112,-327.904025,0.000172,2]
[346717319,1735235449122,-349.6501227,0.000172,2]
[346717320,1735235449134,-153.0,0.000172,2]
[346717321,1735235449143,-972.310938,0.000172,2]
[346717322,1735235449153,-972.310938,0.000172,2]
[346717323,1735235449162,-384.214268,0.000172,2]
[346717324,1735235449173,-749.052098,0.000172,2]
[346717325,1735235449183,-384.214268,0.000172,2]
[346717326,1735235449192,-749.052098,0.000172,2]
[346717327,1735235449202,-151.0,0.000172,2]
[346717328,1735235449211,-413.938411,0.000172,2]
[346717329,1735235449220,-413.938411,0.000172,2]
[346717330,1735235449230,-151.0,0.000172,2]
[346717331,1735235449240,-151.0,0.000172,2]
[346717332,1735235449249,-151.0,0.000172,2]
[346717333,1735235449350,-616.924182,0.000172,2]
[346717334,1735235449360,-616.924182,0.000172,2]
[346717335,1735235449370,-151.0,0.000172,2]
[346717336,1735235449381,-500.0,0.00017246,2]
[346717337,1735235449391,-775.34,0.00017246,2]
[346717338,1735235449401,-500.0,0.00017246,2]
[346717339,1735235449410,-416.64038292,0.00017254,2]
[346717340,1735235449420,-500.0,0.00017254,2]
[346717341,1735235449431,-159.45,0.00017254,2]
[346717342,1735235449441,-294.04532813,0.00017254,2]
[346717343,1735235449451,-500.0,0.00017255,2]
[346717344,1735235449460,-500.0,0.00017255,2]
[346717345,1735235449469,-5101.83,0.00017255,2]
[346717346,1735235449479,-1818.38,0.00017255,2]
[346717347,1735235449488,-883.27,0.00017255,2]
[346717348,1735235449500,-648.77,0.00017255,2]
[346717349,1735235449510,-500.0,0.00017256,2]
[346717350,1735235449519,-238.15,0.00017256,2]
[346717351,1735235449531,-500.0,0.00017256,2]
[346717352,1735235449541,-500.0,0.00017256,2]
[346717353,1735235449551,-199.6,0.00017256,2]
[346717354,1735235449560,-500.0,0.00017256,2]
[346717355,1735235449569,-500.0,0.00017256,2]
[346717356,1735235449580,-526.3,0.00017256,2]
[346717357,1735235449590,-500.0,0.00017256,2]
[346717358,1735235449599,-171.03,0.00017256,2]
[346717359,1735235449608,-758.06,0.00017256,2]
[346717360,1735235449617,-856.53,0.00017256,2]
[346717361,1735235449626,-500.0,0.00017256,2]
[346717362,1735235449638,-500.0,0.00017256,2]
[346717363,1735235449647,-500.0,0.00017256,2]
[346717364,1735235449657,-1053.83,0.00017256,2]
[346717365,1735235449666,-500.0,0.00017256,2]
[346717366,1735235449675,-500.0,0.00017256,2]
[346717367,1735235449684,-532.6,0.00017256,2]
[346717368,1735235449694,-500.0,0.00017256,2]
[346717369,1735235449703,-500.0,0.00017256,2]
[346717370,1735235449713,-481.01,0.00017256,2]
[346717371,1735235449726,-580.79,0.00017256,2]
[346717372,1735235449738,-400.39,0.00017256,2]
[346717373,1735235449749,-599.25,0.00017256,2]
[346717374,1735235449760,-586.76,0.00017256,2]
[346717375,1735235449769,-610.5943336,0.00017256,2]
[346717376,1735235449779,-3894.58,0.00017257,2]
[346717377,1735235449788,-3894.58,0.00017257,2]
[346717378,1735235449798,-15637.57,0.00017257,2]
[346717379,1735235449807,-500.0,0.00017257,2]
[346717380,1735235449816,-151.0,0.00017257,2]
[346717381,1735235449826,-413.938411,0.00017257,2]
[346717382,1735235449835,-413.938411,0.00017257,2]
[346717383,1735235449845,-152.386917,0.00017257,2]
[346717384,1735235449854,-616.924182,0.00017257,2]
[346717385,1735235449863,-616.924182,0.00017257,2]
[346717386,1735235449872,-151.0,0.00017257,2]
[346717387,1735235449884,-500.0,0.00017258,2]
[346717388,1735235449893,-500.0,0.00017258,2]
[346717389,1735235449903,-500.0,0.00017258,2]
[346717390,1735235449912,-500.0,0.00017258,2]
[346717391,1735235449921,-500.0,0.00017258,2]
[346717392,1735235449931,-151.0,0.00017258,2]
[346717393,1735235449940,-364.48,0.00017258,2]
[346717394,1735235449949,-180.025896,0.00017258,2]
[346717395,1735235449958,-180.025896,0.00017258,2]
[346717396,1735235449967,-186.156112,0.00017258,2]
[346717397,1735235449977,-186.156112,0.00017258,2]
[346717398,1735235449986,-500.0,0.00017258,2]
[346717399,1735235449996,-151.0,0.00017258,2]
[346717400,1735235450007,-1576.55464,0.00017258,2]
[346717401,1735235450016,-1576.55464,0.00017258,2]
[346717402,1735235450025,-151.0,0.00017258,2]
[346717403,1735235450035,-151.0,0.00017258,2]
[346717404,1735235450044,-151.0,0.00017258,2]
[346717405,1735235450054,-658.12,0.00017258,2]
[346717406,1735235450063,-151.0,0.00017258,2]
[346717407,1735235450073,-1030.933018,0.00017258,2]
[346717408,1735235450082,-151.0,0.00017258,2]
[346717409,1735235450092,-1030.933018,0.00017258,2]
[346717410,1735235450103,-253.16,0.00017258,2]
[346717411,1735235450114,-500.0,0.00017258,2]
[346717412,1735235450126,-246.25,0.00017258,2]
[346717413,1735235450139,-500.0,0.00017258,2]
[346717414,1735235450150,-500.0,0.00017258,2]
[346717415,1735235450159,-195.761486,0.00017258,2]
[346717416,1735235450168,-195.761486,0.00017258,2]
[346717417,1735235450178,-3894.58,0.00017258,2]
[346717418,1735235450187,-205.624192,0.00017258,2]
[346717419,1735235450196,-205.624192,0.00017258,2]
[346717420,1735235450205,-500.0,0.00017258,2]
[346717421,1735235450215,-1933.080211,0.00017258,2]
[346717422,1735235450224,-1933.080211,0.00017258,2]
[346717423,1735235450233,-902.327182,0.00017258,2]
[346717424,1735235450243,-902.327182,0.00017258,2]
[346717425,1735235450252,-597.444897,0.00017258,2]
[346717426,1735235450262,-500.0,0.00017258,2]
[346717427,1735235450271,-597.444897,0.00017258,2]
[346717428,1735235450280,-151.0,0.00017258,2]
[346717429,1735235450290,-151.0,0.00017258,2]
[346717430,1735235450299,-327.904025,0.00017258,2]
[346717431,1735235450308,-151.0,0.00017258,2]
[346717432,1735235450318,-860.34,0.00017258,2]
[346717433,1735235450327,-327.904025,0.00017258,2]
[346717434,1735235450336,-972.310938,0.00017258,2]
[346717435,1735235450346,-972.310938,0.00017258,2]
[346717436,1735235450355,-384.214268,0.00017258,2]
[346717437,1735235450364,-749.052098,0.00017258,2]
[346717438,1735235450374,-384.214268,0.00017258,2]
[346717439,1735235450385,-749.052098,0.00017258,2]
[346717440,1735235450394,-500.0,0.00017258,2]
[346717441,1735235450403,-1546.16,0.00017258,2]
[346717442,1735235450413,-399.54,0.00017258,2]
[346717443,1735235450422,-151.0,0.00017258,2]
[346717444,1735235450433,-151.0,0.00017258,2]
[346717445,1735235450443,-500.0,0.00017258,2]
[346717446,1735235450453,-754.91,0.00017259,2]
[346717447,1735235450463,-151.0,0.00017259,2]